bitfinex-derivatives/quotes_BTCF0:USTF0_20240825
["timestamp","ask_amount","ask_price","bid_price","bid_amount"]
[1724625760876,0.00015253,64485.0,64484.0,0.94882208]
[1724625762582,0.00015253,64485.0,64484.0,0.8715]
[1724625764875,0.00015253,64485.0,64484.0,0.1499]
[1724625765278,0.00015253,64485.0,64484.0,0.94882208]
[1724625766274,0.04659674,64485.0,64484.0,1.06690717]
[1724625766480,0.04659674,64485.0,64484.0,0.34530717]
[1724625766684,0.04659674,64485.0,64484.0,1.06690717]
[1724625767283,0.04659674,64485.0,64484.0,0.98958509]
[1724625767987,0.04659674,64485.0,64484.0,1.07958509]
[1724625768377,0.00015253,64485.0,64484.0,0.30180933]
[1724625768579,0.00015253,64485.0,64484.0,1.02340933]
[1724625768780,0.00015253,64485.0,64484.0,0.30180933]
[1724625769486,0.00015253,64485.0,64484.0,1.02340933]
[1724625769691,0.00015253,64485.0,64484.0,0.30180933]
[1724625769889,0.00015253,64485.0,64484.0,1.02340933]
[1724625770181,0.00015253,64485.0,64484.0,0.30180933]
[1724625770387,0.00015253,64485.0,64484.0,1.02340933]
[1724625773190,0.00015253,64485.0,64484.0,0.9615]
[1724625775484,0.00015253,64485.0,64484.0,1.07958369]
[1724625779590,0.00015253,64485.0,64484.0,1.07958367]
[1724625781788,0.00015253,64485.0,64484.0,0.98948145]
[1724625781993,0.00015253,64485.0,64483.0,0.06193794]
[1724625781994,0.55539253,64485.0,64483.0,0.06193794]
[1724625782291,0.12483899,64484.0,64481.0,0.06193794]
[1724625782492,0.077505,64480.0,64479.0,0.06193794]
[1724625782795,0.077505,64480.0,64479.0,0.07193794]
[1724625783488,0.15495637,64480.0,64479.0,0.01]
[1724625784192,0.15495637,64480.0,64479.0,0.012]
[1724625784692,0.077505,64480.0,64479.0,0.002]
[1724625784892,0.6202148,64480.0,64479.0,0.002]
[1724625785091,0.19556,64480.0,64479.0,0.002]
[1724625785390,0.10263322,64480.0,64479.0,0.002]
[1724625785597,0.19556,64480.0,64479.0,0.002]
[1724625786488,0.10263322,64480.0,64479.0,0.002]
[1724625786697,0.56791322,64480.0,64479.0,0.002]
[1724625786893,0.10263322,64480.0,64479.0,0.002]
[1724625787083,0.56791322,64480.0,64479.0,0.002]
[1724625787290,0.10263322,64480.0,64479.0,0.002]
[1724625787692,0.10263548,64480.0,64479.0,0.002]
[1724625789600,0.077505,64480.0,64479.0,0.002]
[1724625790292,0.15523128,64480.0,64479.0,0.002]
[1724625790493,0.077905,64480.0,64479.0,0.002]
[1724625793299,0.12428355,64480.0,64479.0,0.002]
[1724625794996,0.15541,64480.0,64479.0,0.002]
[1724625799301,0.20177612,64480.0,64479.0,0.002]
[1724625800203,0.15541,64480.0,64479.0,0.002]
[1724625800406,0.2017774,64480.0,64479.0,0.002]
[1724625802298,0.15541,64480.0,64479.0,0.002]
[1724625805007,0.15541,64480.0,64479.0,0.001]
[1724625805008,0.698195,64480.0,64479.0,0.001]
[1724625805217,0.077513,64473.0,64469.0,0.04643958]
[1724625805513,0.22937612,64470.0,64463.0,0.3608]
[1724625805816,0.167524,64464.0,64463.0,0.3608]
[1724625806303,0.167924,64464.0,64463.0,0.3608]
[1724625806903,0.167924,64464.0,64463.0,0.3648]
[1724625807805,0.167924,64464.0,64463.0,0.3678]
[1724625809607,0.25066474,64464.0,64463.0,0.3678]
[1724625810113,0.18880562,64464.0,64463.0,0.3678]
[1724625810515,0.09880562,64464.0,64463.0,0.3678]
[1724625810705,0.2506877,64464.0,64463.0,0.3678]
[1724625811106,0.18880562,64464.0,64463.0,0.3678]
[1724625813105,0.18880562,64464.0,64463.0,0.007]
[1724625813503,0.077924,64464.0,64463.0,0.107]
[1724625814109,0.077924,64464.0,64463.0,0.2492]
[1724625816409,0.167924,64464.0,64463.0,0.1492]
[1724625818407,0.167924,64464.0,64463.0,0.1592]
[1724625819512,0.167924,64464.0,64463.0,0.52]
[1724625821111,0.167924,64464.0,64463.0,0.1592]
[1724625821312,0.077924,64464.0,64463.0,0.52]
[1724625822418,0.077924,64464.0,64463.0,0.56637742]
[1724625822814,0.077924,64464.0,64463.0,0.41417742]
[1724625823023,0.12434155,64464.0,64463.0,0.3678]
[1724625823619,0.077924,64464.0,64463.0,0.3678]
[1724625824012,0.12435362,64464.0,64463.0,0.3678]
[1724625824407,0.077924,64464.0,64463.0,0.3678]
[1724625824619,0.13981406,64464.0,64463.0,0.3678]
[1724625824915,0.077924,64464.0,64463.0,0.3678]
[1724625827124,0.077924,64464.0,64463.0,0.007]
[1724625832212,0.077924,64464.0,64463.0,0.06337742]
[1724625832416,0.12437804,64464.0,64463.0,0.017]
[1724625832619,0.077924,64464.0,64463.0,0.017]
[1724625834512,0.232972,64464.0,64463.0,0.007]
[1724625834718,0.232972,64464.0,64453.0,0.09281548]
[1724625834719,0.15507,64455.0,64454.0,0.04646715]
[1724625834917,0.15507,64455.0,64449.0,0.04646715]
[1724625834918,0.38594126,64455.0,64449.0,0.04646715]
[1724625835131,0.16750565,64452.0,64449.0,0.04646715]
[1724625835321,0.077541,64450.0,64449.0,0.04646715]
[1724625835626,0.077541,64450.0,64443.0,0.07741928]
[1724625835627,0.077544,64448.0,64447.0,0.04646715]
[1724625835837,0.167544,64448.0,64447.0,0.04646715]
[1724625836322,0.167944,64448.0,64447.0,0.04646715]
[1724625836519,0.13684996,64448.0,64445.0,0.04646715]
[1724625836727,0.09,64446.0,64445.0,0.04646715]
[1724625837421,0.0904,64446.0,64445.0,0.04646715]
[1724625837623,0.167946,64446.0,64445.0,0.028]
[1724625838020,0.167946,64446.0,64445.0,0.014]
[1724625838223,0.168946,64446.0,64445.0,0.028]
[1724625838427,0.169946,64446.0,64445.0,0.028]
[1724625839728,0.169946,64446.0,64445.0,0.038]
[1724625839925,0.169946,64446.0,64445.0,0.028]
[1724625840518,0.079946,64446.0,64445.0,0.5188]
[1724625840926,0.169946,64446.0,64445.0,0.3888]
[1724625841133,0.169946,64446.0,64445.0,0.43516801]
[1724625841328,0.169946,64446.0,64445.0,0.3888]
[1724625842630,0.079946,64446.0,64445.0,0.3988]
[1724625843022,0.079946,64446.0,64445.0,0.44516801]
[1724625843631,0.079946,64446.0,64445.0,0.3988]
[1724625844126,0.0024,64446.0,64445.0,0.3988]
[1724625844330,0.0024,64446.0,64445.0,0.566347]
[1724625844723,0.077541,64450.0,64445.0,0.566347]
[1724625845034,0.077541,64450.0,64447.0,0.04633857]
[1724625845231,0.077541,64450.0,64447.0,0.08633857]
[1724625845427,0.3608,64455.0,64446.0,0.04633857]
[1724625845428,0.0896,64448.0,64446.0,0.04633857]
[1724625845624,0.09,64447.0,64446.0,0.05633857]
[1724625846426,0.076,64447.0,64446.0,0.05633857]
[1724625846723,0.0670839,64456.0,64446.0,0.01]
[1724625846724,0.02063394,64456.0,64446.0,0.01]
[1724625846924,0.00023271,64456.0,64455.0,0.528335]
[1724625847130,0.00023271,64456.0,64455.0,0.80987435]
[1724625847430,0.00023271,64456.0,64455.0,0.763535]
[1724625847636,0.00023271,64456.0,64455.0,0.71985687]
[1724625847935,0.00023271,64456.0,64455.0,0.74092084]
[1724625848127,0.00023271,64456.0,64455.0,0.69459897]
[1724625848327,0.00023271,64456.0,64455.0,0.70659897]
[1724625848529,0.00023271,64456.0,64455.0,0.75292084]
[1724625848729,0.00023271,64456.0,64455.0,0.76392084]
[1724625849430,0.00023271,64456.0,64455.0,0.85392084]
[1724625850030,0.00023271,64456.0,64455.0,0.76392084]
[1724625850532,0.077524,64465.0,64459.0,0.07753]
[1724625850721,0.077525,64464.0,64459.0,0.16753]
[1724625851832,0.0008,64467.0,64462.0,0.3608]
[1724625852130,0.0008,64467.0,64466.0,0.12384958]
[1724625852333,0.0008,64467.0,64466.0,0.187522]
[1724625853333,0.0018,64467.0,64466.0,0.187522]
[1724625857641,0.0018,64467.0,64466.0,0.23376127]
[1724625857941,0.0018,64467.0,64466.0,0.25444924]
[1724625858530,0.0018,64467.0,64466.0,0.20820997]
[1724625860236,0.0018,64467.0,64466.0,0.56900997]
[1724625865044,0.0018,64467.0,64466.0,0.92980997]
[1724625869950,0.077506,64480.0,64467.0,0.46536]
[1724625870251,0.077506,64480.0,64478.0,0.3608]
[1724625870454,0.077506,64480.0,64478.0,0.4508]
[1724625871351,0.078506,64480.0,64478.0,0.4508]
[1724625872048,0.001,64480.0,64478.0,0.4508]
[1724625872446,0.015,64480.0,64478.0,0.4518]
[1724625873239,0.014,64480.0,64478.0,0.4518]
[1724625873443,0.017,64480.0,64478.0,0.4528]
[1724625873951,0.017,64480.0,64478.0,0.47357921]
[1724625876447,0.07896182,64480.0,64478.0,0.47357921]
[1724625876948,0.15646782,64480.0,64478.0,0.47357921]
[1724625877251,0.094506,64480.0,64478.0,0.47357921]
[1724625877445,0.06186047,64479.0,64478.0,0.47357921]
[1724625878646,0.094506,64480.0,64478.0,0.47357921]
[1724625879440,0.080506,64480.0,64478.0,0.47257921]
[1724625879646,0.014,64479.0,64478.0,0.47257921]
[1724625879849,0.017,64479.0,64478.0,0.47357921]
[1724625880245,0.003,64479.0,64478.0,0.47257921]
[1724625880445,0.003,64479.0,64478.0,0.47357921]
[1724625880645,0.06192298,64479.0,64478.0,0.47357921]
[1724625880859,0.014,64479.0,64478.0,0.47357921]
[1724625881448,0.017,64479.0,64478.0,0.47357921]
[1724625882045,0.107,64479.0,64478.0,0.47357921]
[1724625882451,0.16894923,64479.0,64478.0,0.47357921]
[1724625884251,0.16895369,64479.0,64478.0,0.51979614]
[1724625884461,0.16895335,64479.0,64478.0,0.51979614]
[1724625885060,0.07895335,64479.0,64478.0,0.51979614]
[1724625885249,0.07895335,64479.0,64478.0,0.52019614]
[1724625886952,0.07895335,64479.0,64478.0,0.47397921]
[1724625887255,0.07895335,64479.0,64478.0,0.52034548]
[1724625887459,0.07895335,64479.0,64478.0,0.52034687]
[1724625887761,0.07895335,64479.0,64478.0,0.52034725]
[1724625888056,0.017,64479.0,64478.0,0.52034537]
[1724625888369,0.017,64479.0,64478.0,0.47397921]
[1724625889361,0.017,64479.0,64478.0,0.52034694]
[1724625889561,0.07895335,64479.0,64478.0,0.52034694]
[1724625890262,0.017,64479.0,64478.0,0.55148621]
[1724625890763,0.017,64479.0,64478.0,1.10780031]
[1724625890959,0.017,64479.0,64478.0,1.03038103]
[1724625892054,0.017,64479.0,64478.0,1.03037916]
[1724625892462,0.017,64479.0,64478.0,1.10763213]
[1724625892964,0.017,64479.0,64478.0,0.98953918]
[1724625893264,0.017,64479.0,64478.0,0.91228621]
[1724625895367,0.017,64479.0,64478.0,1.06409417]
[1724625895562,0.017,64479.0,64478.0,1.00228621]
[1724625897762,0.017,64479.0,64478.0,0.64148621]
[1724625897962,0.017,64479.0,64478.0,0.55148621]
[1724625898159,0.017,64479.0,64478.0,0.47397921]
[1724625898360,0.094506,64479.0,64478.0,0.47397921]
[1724625898662,0.1196333,64479.0,64478.0,0.47397921]
[1724625899258,0.0421273,64479.0,64478.0,0.47397921]
[1724625899460,0.017,64479.0,64478.0,0.47397921]
[1724625900354,0.017,64479.0,64478.0,0.55148621]
[1724625900967,0.09444542,64479.0,64478.0,0.55148621]
[1724625901655,0.017,64479.0,64478.0,0.55148621]
[1724625901853,0.09444542,64479.0,64478.0,0.47397921]
[1724625902453,0.017,64479.0,64478.0,0.47397921]
[1724625902659,0.09444527,64479.0,64478.0,0.47397921]
[1724625903361,0.017,64479.0,64478.0,0.47397921]
[1724625903664,0.017,64479.0,64478.0,0.53578717]
[1724625904054,0.06346716,64479.0,64478.0,0.53578717]
[1724625904866,0.094506,64479.0,64478.0,0.53578717]
[1724625905170,0.017,64479.0,64478.0,0.53578717]
[1724625909762,0.017,64479.0,64478.0,0.17498717]
[1724625909963,0.017,64479.0,64478.0,0.53578717]
[1724625910161,0.017,64479.0,64478.0,0.51500796]
[1724625910162,0.094506,64479.0,64478.0,0.51500796]
[1724625911170,0.094506,64479.0,64478.0,0.4532]
[1724625913878,0.094506,64479.0,64478.0,0.49957893]
[1724625914378,0.11570716,64479.0,64478.0,0.49957893]
[1724625914681,0.11570716,64479.0,64478.0,0.0924]
[1724625914682,0.19321316,64479.0,64478.0,0.0924]
[1724625914873,0.19321316,64479.0,64478.0,0.0024]
[1724625914874,0.57914332,64479.0,64478.0,0.0024]
[1724625916370,0.55395822,64479.0,64478.0,0.0024]
[1724625916575,0.53275706,64479.0,64478.0,0.0024]
[1724625916769,0.017,64479.0,64478.0,0.15629114]
[1724625917070,0.017,64479.0,64478.0,0.109907]
[1724625917269,0.07895404,64479.0,64478.0,0.53251496]
[1724625917475,0.07895404,64479.0,64478.0,0.470707]
[1724625917476,0.017,64479.0,64478.0,0.470707]
[1724625917680,0.017,64479.0,64478.0,0.55368227]
[1724625917876,0.07895203,64479.0,64478.0,0.55368227]
[1724625918082,0.07895203,64479.0,64478.0,0.64368227]
[1724625918280,0.017,64479.0,64478.0,0.58187798]
[1724625920173,0.017,64479.0,64478.0,0.49187798]
[1724625920680,0.017,64479.0,64478.0,0.41437098]
[1724625921681,0.017,64479.0,64478.0,0.4607351]
[1724625921977,0.094506,64479.0,64478.0,0.4607351]
[1724625922379,0.094506,64479.0,64478.0,0.41437098]
[1724625923877,0.094506,64479.0,64478.0,0.46077167]
[1724625924583,0.094506,64479.0,64478.0,0.41437098]
[1724625925882,0.094506,64479.0,64478.0,0.05357098]
[1724625926185,0.094506,64479.0,64478.0,0.41437098]
[1724625926583,0.094506,64479.0,64478.0,0.05357098]
[1724625926776,0.094506,64479.0,64478.0,0.41437098]
[1724625926977,0.094506,64479.0,64478.0,0.3932]
[1724625927175,0.094506,64479.0,64478.0,0.43960514]
[1724625927786,0.139706,64479.0,64478.0,0.43960514]
[1724625930077,0.094506,64479.0,64478.0,0.43960514]
[1724625930278,0.017,64479.0,64478.0,0.470707]
[1724625931388,0.017,64479.0,64478.0,0.53250598]
[1724625932585,0.07895302,64479.0,64478.0,0.470707]
[1724625932791,0.09445106,64479.0,64478.0,0.470707]
[1724625933787,0.017,64479.0,64478.0,0.470707]
[1724625934083,0.09444442,64479.0,64478.0,0.3932]
[1724625934284,0.11963426,64479.0,64478.0,0.3932]
[1724625936992,0.11963426,64479.0,64478.0,0.0324]
[1724625937193,0.11963426,64479.0,64478.0,0.3932]
[1724625938886,0.11963426,64479.0,64478.0,0.0324]
[1724625939087,0.11963426,64479.0,64478.0,0.3932]
[1724625940292,0.21263375,64479.0,64478.0,0.3932]
[1724625940589,0.21263375,64479.0,64478.0,0.0324]
[1724625940792,0.094506,64479.0,64478.0,0.0324]
[1724625943185,0.017,64479.0,64478.0,0.0324]
[1724625943500,0.017,64479.0,64478.0,0.109907]
[1724625943692,0.017,64479.0,64478.0,0.202707]
[1724625946790,0.07895446,64479.0,64478.0,0.26450598]
[1724625947699,0.017,64479.0,64478.0,0.563507]
[1724625950811,0.017,64479.0,64478.0,0.62530598]
[1724625951919,0.017,64479.0,64478.0,0.563507]
[1724625952414,0.017,64479.0,64478.0,0.26450598]
[1724625952619,0.017,64479.0,64478.0,0.563507]
[1724625952819,0.017,64479.0,64478.0,0.62530598]
[1724625953111,0.017,64479.0,64478.0,0.563507]
[1724625953618,0.017,64479.0,64478.0,0.62530598]
[1724625954117,0.017,64479.0,64478.0,0.653507]
[1724625954514,0.017,64479.0,64478.0,0.71530598]
[1724625954710,0.017,64479.0,64478.0,0.45499898]
[1724625954906,0.017,64479.0,64478.0,0.3932]
[1724625959722,0.07898311,64479.0,64478.0,0.470707]
[1724625960018,0.06349047,64479.0,64478.0,0.58880655]
[1724625960522,0.017,64479.0,64478.0,0.58880655]
[1724625961026,0.06349047,64479.0,64478.0,0.58880655]
[1724625961413,0.017,64479.0,64478.0,0.58880655]
[1724625962818,0.017,64479.0,64478.0,0.5326839]
[1724625962819,0.07898311,64479.0,64478.0,0.5326839]
[1724625964326,0.017,64479.0,64478.0,0.470707]
[1724625965218,0.017,64479.0,64478.0,0.831507]
[1724625965823,0.07898311,64479.0,64478.0,0.831507]
[1724625967521,0.017,64479.0,64478.0,0.831507]
[1724625967820,0.017,64479.0,64478.0,0.109907]
[1724625968123,0.017,64479.0,64478.0,0.831507]
[1724625969330,0.017,64479.0,64478.0,0.87795837]
[1724625969725,0.017,64479.0,64478.0,0.831507]
[1724625970431,0.09445122,64479.0,64478.0,0.831507]
[1724625970930,0.06346724,64479.0,64478.0,0.8934839]
[1724625971425,0.017,64479.0,64478.0,0.8934839]
[1724625972933,0.017,64479.0,64478.0,0.5326839]
[1724625973126,0.017,64479.0,64478.0,0.470707]
[1724625973729,0.06347559,64479.0,64478.0,0.470707]
[1724625974327,0.017,64479.0,64478.0,0.470707]
[1724625974527,0.06347617,64479.0,64478.0,0.470707]
[1724625975129,0.017,64479.0,64478.0,0.470707]
[1724625976035,0.017,64479.0,64478.0,0.560707]
[1724625980330,0.06348032,64479.0,64478.0,0.560707]
[1724625980534,0.0619565,64483.0,64482.0,0.077503]
[1724625980739,0.04647659,64483.0,64482.0,0.5408]
[1724625980932,0.04662912,64485.0,64482.0,0.6588878]
[1724625981134,0.04662912,64485.0,64483.0,0.07743555]
[1724625981338,0.04662912,64485.0,64483.0,0.09]
[1724625981739,0.04662912,64485.0,64484.0,0.0004]
[1724625982039,0.00015253,64485.0,64484.0,0.1679]
[1724625982737,0.00115253,64485.0,64484.0,0.1679]
[1724625982930,0.00115253,64485.0,64484.0,0.0914]
[1724625983131,0.06212132,64485.0,64484.0,0.0914]
[1724625983333,0.10952132,64485.0,64484.0,0.0924]
[1724625983843,0.10952132,64485.0,64484.0,0.4532]
[1724625984942,0.10952132,64485.0,64484.0,0.47453704]
[1724625985338,0.04755253,64485.0,64484.0,0.47453704]
[1724625985939,0.07267849,64485.0,64484.0,0.47453704]
[1724625986247,0.24317698,64485.0,64484.0,0.4532]
[1724625988046,0.15017749,64485.0,64484.0,0.4532]
[1724625988542,0.17078559,64485.0,64484.0,0.4532]
[1724625989248,0.15017749,64485.0,64484.0,0.4532]
[1724625990543,0.15017749,64485.0,64484.0,0.5432]
[1724625992946,0.18702214,64485.0,64484.0,0.60515072]
[1724625993347,0.18702214,64485.0,64484.0,0.51515072]
[1724625995347,0.12505153,64485.0,64484.0,0.4532]
[1724625998062,0.12505153,64485.0,64484.0,0.0924]
[1724626001652,0.12505153,64485.0,64484.0,0.1543634]
[1724626001857,0.07865153,64485.0,64484.0,0.1543634]
[1724626002060,0.07865153,64485.0,64484.0,0.0924]
[1724626002355,0.07865153,64485.0,64484.0,0.1543634]
[1724626002562,0.14062235,64485.0,64484.0,0.1824]
[1724626003260,0.07865153,64485.0,64484.0,0.24434959]
[1724626003554,0.07865153,64485.0,64484.0,0.1824]
[1724626004258,0.07865153,64485.0,64484.0,0.0924]
[1724626005671,0.07865153,64485.0,64484.0,0.13887126]
[1724626006673,0.94389153,64485.0,64484.0,0.13887126]
[1724626006880,1.04651839,64485.0,64484.0,0.002]
[1724626007071,1.04691839,64485.0,64484.0,0.002]
[1724626008076,1.07685698,64485.0,64484.0,0.002]
[1724626008670,0.59935798,64485.0,64484.0,0.002]
[1724626009474,0.68935798,64485.0,64484.0,0.002]
[1724626009985,0.2446378,64485.0,64484.0,0.002]
[1724626011678,0.3221368,64485.0,64484.0,0.002]
[1724626014577,0.26707029,64485.0,64484.0,0.002]
[1724626014777,0.32213575,64485.0,64484.0,0.002]
[1724626016082,0.26707029,64485.0,64484.0,0.002]
[1724626016476,0.29219827,64485.0,64484.0,0.002]
[1724626016676,0.26707029,64485.0,64484.0,0.002]
[1724626016982,0.29219825,64485.0,64484.0,0.002]
[1724626017490,0.18957129,64485.0,64484.0,0.002]
[1724626018281,0.26701323,64485.0,64484.0,0.002]
[1724626018489,0.18957129,64485.0,64484.0,0.002]
[1724626018985,0.16905153,64485.0,64484.0,0.002]
[1724626019486,0.16905153,64485.0,64484.0,0.012]
[1724626019794,0.16905153,64485.0,64484.0,0.13594888]
[1724626020085,0.23100085,64485.0,64484.0,0.13594911]
[1724626020395,0.23100006,64485.0,64484.0,0.0895]
[1724626020686,0.23099986,64485.0,64484.0,0.13594805]
[1724626021181,0.14099986,64485.0,64484.0,0.13594805]
[1724626021378,0.14099986,64485.0,64484.0,0.0895]
[1724626021780,0.00155253,64485.0,64484.0,0.0895]
[1724626021980,0.04801257,64485.0,64484.0,0.15144959]
[1724626022285,0.00155253,64485.0,64484.0,0.0895]
[1724626022590,0.06350086,64485.0,64484.0,0.05844847]
[1724626022788,0.00155253,64485.0,64484.0,0.012]
[1724626022985,0.02667909,64485.0,64484.0,0.012]
[1724626023489,0.10417809,64485.0,64484.0,0.002]
[1724626023694,0.13411355,64485.0,64484.0,0.002]
[1724626027184,0.15464804,64485.0,64484.0,0.002]
[1724626027581,0.20114804,64485.0,64484.0,0.002]
[1724626031097,0.17121258,64485.0,64484.0,0.002]
[1724626032584,0.17121389,64485.0,64484.0,0.002]
[1724626038098,0.20115036,64485.0,64484.0,0.002]
[1724626039597,0.27864936,64485.0,64484.0,0.002]
[1724626039991,0.63944936,64485.0,64484.0,0.002]
[1724626040193,1.58218836,64485.0,64484.0,1e-06]
[1724626040391,1.54511809,64485.0,64484.0,1e-06]
[1724626040895,1.61332644,64485.0,64484.0,1e-06]
[1724626041403,1.55675193,64485.0,64484.0,1e-06]
[1724626041701,1.15675193,64485.0,64484.0,1e-06]
[1724626041897,0.67987809,64485.0,64484.0,1e-06]
[1724626042104,0.63944936,64485.0,64484.0,1e-06]
[1724626042889,0.56195036,64485.0,64484.0,1e-06]
[1724626043109,0.51545036,64485.0,64484.0,1e-06]
[1724626043503,0.60545036,64485.0,64484.0,1e-06]
[1724626044295,0.68294936,64485.0,64484.0,1e-06]
[1724626044503,1.58891215,64485.0,64484.0,1e-06]
[1724626044803,1.18891215,64485.0,64484.0,1e-06]
[1724626045200,1.23581215,64485.0,64484.0,1e-06]
[1724626046003,1.14581215,64485.0,64484.0,1e-06]
[1724626046202,1.10508936,64485.0,64484.0,1e-06]
[1724626048503,1.58258836,64485.0,64484.0,1e-06]
[1724626048906,1.63392409,64485.0,64484.0,1e-06]
[1724626050004,1.75779668,64485.0,64484.0,1e-06]
[1724626051610,1.63334848,64485.0,64484.0,1e-06]
[1724626052003,1.75722107,64485.0,64484.0,1e-06]
[1724626052205,1.63334848,64485.0,64484.0,1e-06]
[1724626052404,1.75722107,64485.0,64484.0,1e-06]
[1724626052603,1.63334848,64485.0,64484.0,1e-06]
[1724626053206,1.63334848,64485.0,64464.0,0.02105394]
[1724626053207,0.155024,64474.0,64464.0,0.02105394]
[1724626053412,0.57090339,64474.0,64464.0,0.02105394]
[1724626053604,0.54095848,64474.0,64464.0,0.02105394]
[1724626053910,0.57090321,64474.0,64464.0,0.02105394]
[1724626054502,0.54195848,64474.0,64464.0,0.02105394]
[1724626054911,0.54395848,64474.0,64464.0,0.02105394]
[1724626055106,0.54395848,64474.0,64473.0,7.1e-07]
[1724626055107,0.98227048,64474.0,64473.0,7.1e-07]
[1724626055410,0.90475848,64474.0,64473.0,7.1e-07]
[1724626055717,0.9251255,64474.0,64473.0,7.1e-07]
[1724626056308,0.92512548,64474.0,64473.0,7.1e-07]
[1724626057110,0.95507062,64474.0,64473.0,7.1e-07]
[1724626058013,1.42039062,64474.0,64473.0,7.1e-07]
[1724626058314,1.89790262,64474.0,64473.0,7.1e-07]
[1724626061219,1.96065244,64474.0,64473.0,7.1e-07]
[1724626061519,1.96064531,64474.0,64473.0,7.1e-07]
[1724626061717,1.8679607,64474.0,64473.0,7.1e-07]
[1724626063519,0.077534,64456.0,64455.0,0.02079539]
[1724626063720,0.077534,64456.0,64455.0,0.01]
[1724626064208,0.077536,64454.0,64453.0,0.1409]
[1724626065017,0.077936,64454.0,64453.0,0.1409]
[1724626066110,0.077936,64454.0,64453.0,0.1549]
[1724626067417,0.077936,64454.0,64453.0,0.1689]
[1724626067418,0.155472,64454.0,64453.0,0.1689]
[1724626068110,0.245472,64454.0,64453.0,0.1689]
[1724626072025,0.26608101,64454.0,64453.0,0.1689]
[1724626072530,0.62688101,64454.0,64453.0,0.1689]
[1724626072823,0.67321586,64454.0,64453.0,0.1689]
[1724626073020,0.67321586,64454.0,64453.0,0.028]
[1724626074528,0.62688101,64454.0,64453.0,0.028]
[1724626074919,0.67321899,64454.0,64453.0,0.028]
[1724626075522,0.62688101,64454.0,64453.0,0.028]
[1724626075723,0.67321361,64454.0,64453.0,0.028]
[1724626075931,0.67321383,64454.0,64453.0,0.028]
[1724626076123,0.62688101,64454.0,64453.0,0.028]
[1724626078335,0.68866081,64454.0,64453.0,0.028]
[1724626079427,0.62688101,64454.0,64453.0,0.028]
[1724626080325,0.077936,64454.0,64453.0,0.028]
[1724626080538,0.0004,64454.0,64453.0,0.215538]
[1724626080832,0.04677498,64454.0,64453.0,0.215538]
[1724626081128,0.0004,64454.0,64453.0,0.26194217]
[1724626081427,0.0004,64454.0,64453.0,0.215538]
[1724626082230,0.04637498,64455.0,64453.0,0.215538]
[1724626082231,0.04637498,64458.0,64457.0,0.077533]
[1724626082535,0.12390298,64461.0,64458.0,0.077531]
[1724626082724,0.04637498,64462.0,64461.0,0.077528]
[1724626082925,0.02046104,64467.0,64461.0,0.097528]
[1724626082926,0.04637498,64463.0,64461.0,0.097528]
[1724626083126,0.04637498,64462.0,64461.0,0.097528]
[1724626083736,0.04637498,64462.0,64458.0,0.1423]
[1724626083737,0.077527,64462.0,64458.0,0.1423]
[1724626083930,0.13639308,64460.0,64458.0,0.1723]
[1724626084226,0.04639308,64459.0,64458.0,0.1723]
[1724626084429,0.04639883,64459.0,64458.0,0.1723]
[1724626085030,0.04639883,64459.0,64458.0,0.1843]
[1724626085424,0.16753,64460.0,64458.0,0.1843]
[1724626085928,0.16753,64460.0,64458.0,0.1973]
[1724626086124,0.04600416,64459.0,64458.0,0.1973]
[1724626086324,0.16753,64460.0,64458.0,0.1973]
[1724626087526,0.22935822,64460.0,64458.0,0.1973]
[1724626088231,0.07753,64460.0,64458.0,0.1973]
[1724626088425,0.13935822,64460.0,64458.0,0.1973]
[1724626089323,0.07753,64460.0,64458.0,0.1973]
[1724626089741,0.13935822,64460.0,64458.0,0.1973]
[1724626089930,0.13935822,64460.0,64459.0,0.3608]
[1724626090239,0.07753,64460.0,64459.0,0.3608]
[1724626090829,0.13935822,64460.0,64459.0,0.3608]
[1724626091030,0.13935822,64460.0,64459.0,0.3838]
[1724626091230,0.07753,64460.0,64459.0,0.3838]
[1724626091430,0.13944293,64460.0,64459.0,0.3838]
[1724626092334,0.09880269,64460.0,64459.0,0.023]
[1724626093240,0.46355744,64460.0,64459.0,0.023]
[1724626093441,0.50875744,64460.0,64459.0,0.023]
[1724626093744,0.81747165,64460.0,64459.0,0.023]
[1724626096832,0.73994165,64460.0,64459.0,0.023]
[1724626097942,0.37914165,64460.0,64459.0,0.023]
[1724626098141,0.16914165,64460.0,64459.0,0.023]
[1724626098346,0.26181135,64460.0,64459.0,0.023]
[1724626099633,0.16914165,64460.0,64459.0,0.023]
[1724626101735,0.16914165,64460.0,64459.0,0.043]
[1724626101937,0.16914165,64460.0,64459.0,0.023]
[1724626102536,0.26181135,64460.0,64459.0,0.023]
[1724626103443,0.26181135,64460.0,64459.0,0.083]
[1724626104135,0.16914165,64460.0,64459.0,0.083]
[1724626104840,0.95701165,64460.0,64452.0,0.04641267]
[1724626105055,0.077544,64448.0,64441.0,0.04641267]
[1724626105237,0.18023072,64448.0,64439.0,0.04641267]
[1724626105543,0.18023072,64448.0,64436.0,0.06194959]
[1724626105544,0.077553,64440.0,64436.0,0.04641267]
[1724626105743,0.077554,64439.0,64437.0,0.04641267]
[1724626106238,0.077554,64439.0,64436.0,0.04641267]
[1724626106543,0.27189275,64441.0,64436.0,0.04641267]
[1724626106840,0.07756,64434.0,64431.0,0.04664538]
[1724626107041,0.07756,64434.0,64431.0,0.00023271]
[1724626107042,0.077562,64433.0,64431.0,0.00023271]
[1724626107243,0.077563,64432.0,64431.0,0.00023271]
[1724626107636,0.049963,64432.0,64431.0,0.00023271]
[1724626108148,0.049963,64432.0,64431.0,0.00623271]
[1724626109735,0.050963,64432.0,64431.0,0.00023271]
[1724626112244,0.050963,64432.0,64431.0,0.09023271]
[1724626112545,0.050963,64432.0,64431.0,0.00023271]
[1724626113941,0.050963,64432.0,64431.0,0.05023271]
[1724626114945,0.050963,64432.0,64431.0,0.00023271]
[1724626115938,0.050963,64432.0,64431.0,0.05023271]
[1724626116434,0.049963,64432.0,64431.0,0.05023271]